Cogmind - Beta 10.2 @@@ ROGUE MODE // 2021.12.23 @ 22:28:52 Player: Dytto Result: Destroyed by Y-45 Defender with Beam Rifle Performance ------------- Evolutions (0) 0 Regions Visited (2) 400 Robots Destroyed (12) 60 Value Destroyed (200) 200 Prototype IDs (0) 0 Alien Tech Used (0) 0 Bonus (0) 0 TOTAL SCORE: 660 Bonus ------- None Cogmind --------- Core Integrity 0/250 Matter 300/300 Energy 159/160 System Corruption 0% Temperature Cool (9) Movement Core (250) Ox4 Location -10/Mines Parts ------- > --- POWER (1) -------- Light Nuclear Core > --- PROPULSION (2) --- (None) > --- UTILITY (2) ------ Small Storage Unit Power Shielding > --- WEAPON (2) ------- Ripper > --- INVENTORY (6) ---- Compact Wheel Compact Wheel EM Pulse Gun Medium Laser Peak State ------------ > --- POWER ------------ Light Nuclear Core > --- PROPULSION ------- Aluminum Leg Aluminum Leg > --- UTILITY ---------- Small Storage Unit Power Shielding > --- WEAPON ----------- Light Cannon Ripper > --- INVENTORY -------- Compact Wheel Compact Wheel EM Pulse Gun Medium Laser [Rating: 12] Favorites ----------- Power Light Ion Engine Engine Light Ion Engine Power Core Light Nuclear Core Propulsion Aluminum Leg Leg Aluminum Leg Wheel Compact Wheel Utility Small Storage Unit Storage Small Storage Unit Protection Power Shielding Weapon Ripper Energy Gun Particle Gun Ballistic Cannon Light Cannon Slashing Weapon Ripper Build | -11 -10 -10 ------- Run | Scr Mat Min Slots Evolved . | . . . Power . | . . . Propulsion . | . . . Utility . | . . . Weapon . | . . . Parts Attached 13 | 6 4 3 Power 2 | 1 . 1 Engine 1 | 1 . . Core 1 | . . 1 Reactor . | . . . Propulsion 3 | 2 1 . Treads . | . . . Leg 2 | 1 1 . Wheel 1 | 1 . . Hover . | . . . Flight . | . . . Utility 2 | 1 1 . Device . | . . . Storage 1 | 1 . . Processor . | . . . Hackware . | . . . Protection 1 | . 1 . Artifact . | . . . Weapon 6 | 2 2 2 Energy Gun 3 | 2 1 . Energy Cannon . | . . . Ballistic Gun . | . . . Ballistic Cannon 2 | . 1 1 Launcher . | . . . Special Weapon . | . . . Impact Weapon . | . . . Slashing Weapon 1 | . . 1 Piercing Weapon . | . . . Special Melee Weapon . | . . . Unidentified Prototypes . | . . . Parts Lost 5 | . . 5 Power 1 | . . 1 Propulsion 2 | . . 2 Utility . | . . . Weapon 2 | . . 2 Highest Loss Streak 3 | . . 3 Average Slot Usage (%) 88 | . 84 89 Engine 11 | . 14 10 Core 1 | . . 2 Leg 26 | . 23 27 Storage 14 | . 14 14 Protection 13 | . 13 14 Energy Gun 4 | . 14 2 Ballistic Cannon 2 | . . 3 Slashing Weapon 11 | . . 13 Naked Turns . | . . . Heaviest Build 16 | 11 11 16 Greatest Support 20 | 10 20 20 Greatest Overweight (x) 5 | 1 1 5 Average Overweight (x) . | . . . Largest Inventory Capacity 6 | 6 6 6 Average Capacity 5 | 5 6 6 Most Carried 6 | 5 6 6 Average Carried 5 | 2 5 5 Final Capacity 6 | 6 6 6 Final Carried 6 | 5 6 4 Class Distribution -------------------- 100% | Mutant Dominant Class ---------------- Mutant | -10/Materials Mutant | -10/Mines Resources | -11 -10 -10 ----------- Run | Scr Mat Min Matter Collected 357 | 202 . 155 Remotely . | . . . Salvage Created 313 | . . 313 Parts 23 | . . 23 Haulers Intercepted . | . . . Recyclers Shooed . | . . . Parts Field Recycled . | . . . Retrieved Matter . | . . . Parts Self-Destructed . | . . . Prevented . | . . . Kills | -11 -10 -10 ------- Run | Scr Mat Min Combat Hostiles Destroyed 9 | . . 9 Melee 9 | . . 9 Classes Destroyed 6 | . . 6 Worker 1 | . . 1 Tunneler 1 | . . 1 Recycler 1 | . . 1 Swarmer 6 | . . 6 Grunt 2 | . . 2 Sentry 1 | . . 1 Best Kill Streak 3 | . . 3 Combat Bots Only 2 | . . 2 Max Kills in Single Turn 1 | . . 1 Gunslinging . | . . . Exploded . | . . . Melee 1 | . . 1 Uniques/NPCs Destroyed . | . . . Combat | -11 -10 -10 -------- Run | Scr Mat Min Damage Taken 752 | . . 752 Core 250 | . . 250 Absorbed by Shields . | . . . Core Remaining (%) 100 | 100 . . Volleys Fired 14 | . . 14 Largest 1 | . . 1 Hottest 65 | . . 65 Shots Fired 14 | . . 14 Gun 5 | . . 5 Cannon 9 | . . 9 Launcher . | . . . Special . | . . . Kinetic 9 | . . 9 Thermal 5 | . . 5 Explosive . | . . . Electromagnetic . | . . . Robot Hit Streak 2 | . . 2 Robot Miss Streak 6 | . . 6 Penetration Max . | . . . Secondary Targets . | . . . Shots Hit Robots 25 | . . 25 Core Hits 11 | . . 11 Critical Hits . | . . . Critical Kills . | . . . Critical Parts Destroyed . | . . . Melee Attacks 32 | . . 32 Impact . | . . . Slashing 32 | . . 32 Piercing . | . . . Sneak Attacks 3 | . . 3 Combat Hostiles . | . . . Follow-up Attacks . | . . . Damage Inflicted 1072 | . . 1072 Guns 15 | . . 15 Cannons 75 | . . 75 Explosions . | . . . Melee 982 | . . 982 Ramming . | . . . Kinetic 75 | . . 75 Thermal 15 | . . 15 Explosive . | . . . Electromagnetic . | . . . Impact . | . . . Slashing 982 | . . 982 Piercing . | . . . Highest Corruption . | . . . Average Corruption . | . . . Corruption Purged . | . . . Overload Shots . | . . . Overflow Damage 169 | . . 169 Projectiles . | . . . Explosions . | . . . Melee 169 | . . 169 Knockbacks . | . . . Impact . | . . . Kinetic . | . . . Secondary . | . . . Self-Inflicted Damage . | . . . Shots . | . . . Rammed . | . . . Targets Rammed . | . . . Kicked . | . . . Crushed . | . . . Highest Temperature 48 | . . 48 Average Temperature 16 | . . 16 Received Heat Transfer 132 | . . 132 Siege Activations . | . . . Robots Corrupted . | . . . Combat Hostiles . | . . . Parts Fried . | . . . Impact Corruptions . | . . . Robots Melted . | . . . Combat Hostiles . | . . . Parts Melted . | . . . Heat Transferred 37 | . . 37 Parts Sabotaged . | . . . Parts Stolen . | . . . Parts Stripped . | . . . Power Chain Reactions . | . . . Missiles Intercepted . | . . . Alert | -11 -10 -10 ------- Run | Scr Mat Min Peak Influence 210 | . 15 210 Initial 5 | . . 5 Average 49 | . 7 62 Maximum Alert Level 1 | . . 1 Low Security (%) 89 | 100 100 86 Level 1 10 | . . 13 Level 2 . | . . . Level 3 . | . . . Level 4 . | . . . Level 5 . | . . . High Security . | . . . Max Security . | . . . Squads Dispatched 1 | . 1 . Investigation 1 | . 1 . Extermination . | . . . Reinforcement . | . . . Assault . | . . . Garrison . | . . . Intercept . | . . . Construction Impeded . | . . . Haulers Reinforced . | . . . Stealth | -11 -10 -10 --------- Run | Scr Mat Min Distress Signals . | . . . Communications Jammed . | . . . Distress Signals . | . . . Times Spotted 17 | . 1 16 Peak Tracking Total 3 | . 1 3 Tactical Retreats 6 | . . 6 Traps | -11 -10 -10 ------- Run | Scr Mat Min Traps Triggered 1 | . 1 . Indirectly . | . . . Trap Hack Attempts . | . . . Triggered . | . . . Disarmed . | . . . Reprogrammed . | . . . Reused . | . . . Traps Extracted . | . . . Installed . | . . . Triggered . | . . . Machines | -11 -10 -10 ---------- Run | Scr Mat Min Machines Disabled . | . . . Max in Single Turn . | . . . Machines Sabotaged . | . . . Garrisons Compromised . | . . . Overloaded Fab Kills . | . . . Fab Network Shutdowns . | . . . Hacking | -11 -10 -10 --------- Run | Scr Mat Min Machines Accessed 3 | . 3 . Terminals 2 | . 2 . Fabricators . | . . . Repair Stations . | . . . Recycling Units 1 | . 1 . Scanalyzers . | . . . Garrison Access . | . . . Total Hacks 5 | . 5 . Successful 3 | . 3 . Failed 2 | . 2 . Catastrophic . | . . . Database Lockouts . | . . . Manual . | . . . Terminals 4 | . 4 . Fabricators . | . . . Repair Stations . | . . . Recycling Units 1 | . 1 . Scanalyzers . | . . . Garrison Access . | . . . Terminal Hacks 2 | . 2 . Record 1 | . 1 . Dispatch Records 1 | . 1 . Fabricator Hacks . | . . . Repair Station Hacks . | . . . Recycling Unit Hacks 1 | . 1 . Report Inventory 1 | . 1 . Scanalyzer . | . . . Garrison Access Hacks . | . . . Unauthorized Hacks . | . . . Terminals . | . . . Fabricators . | . . . Repair Stations . | . . . Recycling Units . | . . . Scanalyzers . | . . . Garrison Access . | . . . Data Cores Recovered . | . . . Used . | . . . Hacking Detections . | . . . Full Trace Events . | . . . Feedback Events . | . . . Feedback Blocked . | . . . Robot Schematics Acquired . | . . . Robots Built . | . . . Matter . | . . . Time . | . . . Total Robot Build Rating . | . . . Part Schematics Acquired . | . . . Parts Built . | . . . Matter . | . . . Time . | . . . Total Part Build Rating . | . . . Parts Repaired . | . . . Time . | . . . Parts Recycled . | . . . Recycled Matter . | . . . Retrieved Matter . | . . . Retrieved Components . | . . . Parts Scanalyzed . | . . . Part Schematics Acquired . | . . . Parts Damaged . | . . . Bothacking | -11 -10 -10 ------------ Run | Scr Mat Min Used RIF Installer . | . . . Robots Hacked . | . . . Non-combat . | . . . Combat . | . . . Robot Hacks Applied . | . . . Relay Couplers Released . | . . . Robots Rewired . | . . . Allies Hacked . | . . . Hacks Repelled . | . . . Allies | -11 -10 -10 -------- Run | Scr Mat Min Total Allies . | . . . Largest Group . | . . . Highest-Rated Group . | . . . Highest-Rated Ally . | . . . Total Orders . | . . . Ally Attacks . | . . . Total Damage . | . . . Kills . | . . . Allies Corrupted . | . . . Allies Melted . | . . . Intel | -11 -10 -10 ------- Run | Scr Mat Min Robot Analysis Total . | . . . Derelict Logs Recovered 1 | . . 1 Drone Launches . | . . . Drone Recoveries . | . . . Exploration | -11 -10 -10 ------------- Run | Scr Mat Min Turns Passed 1239 | 69 231 939 Spaces Moved 625 | 49 178 398 Core 8 | 6 . 2 Treads . | . . . Legs 617 | 43 178 396 Wheels . | . . . Hover . | . . . Flight . | . . . Fastest Speed 50 | 50 120 120 Average Speed 121 | 115 123 121 Slowest Speed 300 | 150 150 300 Overloaded Moves . | . . . Propulsion Burnouts . | . . . Robots Hopped . | . . . Cave-ins Triggered . | . . . Exploration Rate (%) 33 | 4 33 62 Regions Visited 2 Branch Regions 1 Pre-discovered Areas . | . . . Known Exits Taken . | . . . Unknown Exits Taken 2 | 1 1 . Scrap Searched . | . . . Spaces Dug . | . . . Terrain Destroyed . | . . . Melee . | . . . Projectile . | . . . AOE . | . . . Terrain Rammed . | . . . Walls Destroyed . | . . . Machines Disabled . | . . . Actions | -11 -10 -10 --------- Run | Scr Mat Min Total 1044 | 59 190 795 Wait 347 | . 1 346 Move 623 | 48 177 398 Hop . | . . . Pick Up 9 | 4 4 1 Fast Attach 8 | 6 1 1 Attach 3 | . 1 2 Detach 2 | 1 1 . Swap 2 | . 2 . Drop 4 | . 3 1 Fire 14 | . . 14 Melee 32 | . . 32 Ram . | . . . Kick . | . . . Crush . | . . . Escape Stasis . | . . . Rewire . | . . . Trap . | . . . Miscellaneous . | . . . Route ------- -11/Scrapyard -10/Materials -10/Mines (discovered 1 exit: [*Mat]) History --------- Turn | Location | Event 23 | -11/Scrapyard | Discovered new exit (range 16) 70 | -11/Scrapyard | Entered Materials 260 | -10/Materials | Discovered new exit (range 16) 301 | -10/Materials | Entered Mines 306 | -10/Mines | Build established: Mutant 313 | -10/Mines | A weapon hastily lodged in a ceiling crevice suddenly fell to the ground 451 | -10/Mines | Learned location of 1 exit from Materials 1112 | -10/Mines | Discovered new exit (range 9) 1215 | -10/Mines | Core integrity fell below 50% 1235 | -10/Mines | Core integrity fell below 20% 1240 | -10/Mines | Destroyed by Y-45 Defender with Beam Rifle Last Messages --------------- 01090_ K-01 Serf collects debris. 01094_ S-10 Pest destroyed. 01094_ K-01 Serf collects debris. 01097_ Acquired 5 matter. 01099_ K-01 Serf collects debris. 01112_ EXIT=FOUND 01162_ K-01 Serf collects debris. 01164_ Acquired 14 matter. 01165_ K-01 Serf collects debris. 01166_ Acquired 5 matter. 01171_ K-01 Serf collects debris. 01176_ R-06 Scavenger collects Flight Unit. 01180_ R-06 Scavenger collects Lgt. Assault Rifle. 01187_ Sneak attack on K-01 Serf. 01187_ Destroyed Wheel. 01192_ K-01 Serf destroyed. 01194_ Acquired 6 matter. 01214_ Aluminum Leg destroyed. 01237_ Lgt. Cannon destroyed. 01237_ Y-45 Defender destroyed. Map ----- +----------------------------------------------------+ | | | | | ???????????????????????????????????? | | ???????????????????????????????????? | | ???????????????????????????????????? | | ???????????????????????????????????? | | ???????????????????????????????????? | | ???????????????????????????????????? | | ???????????????????????????????????? | | ???????????????????????????????????? | | ???????????????????????????????????? | | ???????????????????????????????????? | | ???????????????????????????????????? | | ???????????????????????????????????? | | ???????????????????????????????????? | | ???????????????????????????????????? | | ???????????????????????????????????? | | ???????????????????????????????????? | | ???????????????????????????????????? | | ???????????????????????????????????? | | ???????????????????????????????????? | | ???????????????????????????????????? | | ???????????????????????????????????? | | ???????######??????????????????????? | | ??????##" ["##?????????????????????? | | ??????#!!=%@Y#?????????????????????? | | ??????#!] [[#?????????????????????? | | ??????## ##?????????????????????? | | ??????###;+###?????????????????????? | | ?????## ###???????????????????? | | ?????# #???????????????????? | | ?????# ######### #?????????? | | ?????# #?????????# | | ?????# ## #######?????????## | | ?????# ## #???????????????# | | ?????# ## #######?????????# | | ?????############ !#?????????# | | ????????????????#######%#?????????## | | ??????????????????????# #??????????# | | ??????????????????????# #??####????? | | ??????????????????????# #??# ##???? | | ?????????????########## #??# #???? | | ?????????????# #### ##??? | | ?????????????# ######## * #??? | | ?????????????# #??????##### #??? | | ???????????### #??????????# #??? | | ????????#### ##?????????## #??? | | ?????#### ##?????????#### #??? | | ?????# #????????????# #### | | ?????# #????????????# | +----------------------------------------------------+ Best States ------------- Heat Dissipation 25 Energy Generation 14 Energy Capacity 160 Matter Stores 300 Matter Capacity 300 Sight Range 16 Terrain Scan Density 10 Power Shielding 33 Evasion (%) 40 Item Schematics ----------------- None Robot Schematics ------------------ None Fabricated ------------ Nothing Alien Tech Used ----------------- None Achievements -------------- None Challenges ------------ None Game ------ Seed ParticleAntigravAutohacker Manual? 0 Play Time 00:12:22 Cumulative 11.8 hours Start 2021.12.23 @ 22:17:03 End 2021.12.23 @ 22:28:52 Sessions 1 Manual Loads 0 Difficulty Rogue Special Mode None Game No. 38 Rogue 2 Adventurer 36 Explorer 0 Win Type - Total 0 Types 0/0/0/0/0/0/0/0/0 Lore% 15 Gallery% 18 Achievement% 13 Wizard Run 0 Options --------- ASCII 0 Keyboard 1 Movement Numpad Keybinds 0 Fullscreen 2 Font 18/X11Bold Map View 76x50 Tactical HUD 1 Map Filters NONE Filters NONE Steam 1 RUN: c7eee903-fc83-44b2-a09e-8605048c441a